fUST/lending_fUST_20250601
["ID","MTS","AMOUNT","RATE_DAILY","PERIOD"]
[363433517,1748722246111,-1116.84,0.00020821,2]
[363433518,1748722246121,-204.02062,0.00020821,2]
[363433519,1748722246131,-204.02062,0.00020821,2]
[363433520,1748722246140,-1012.57,0.00020821,2]
[363433521,1748722246150,-843.24,0.00020821,2]
[363433522,1748722246162,-1455.93,0.00020821,2]
[363433523,1748722246172,-2184.12,0.00020821,2]
[363433524,1748722246182,-494.22,0.00020821,2]
[363433526,1748722246191,-1584.09246953,0.00020915,2]
[363433527,1748722246201,-1500.0,0.00020915,2]
[363433529,1748722246211,-1500.0,0.00020976,2]
[363433530,1748722246220,-150.0,0.00021,2]
[363433531,1748722246229,-365369.54959,0.00021,2]
[363433532,1748722246239,-16685.92,0.00021001,2]
[363433533,1748722246249,-612.01346851,0.00021038,4]
[363433534,1748722246259,-800.0,0.0002106,2]
[363433535,1748722246272,-785.73,0.00021095,2]
[363433536,1748722246282,-884.52,0.00021095,2]
[363433537,1748722246292,-461.57,0.00021095,2]
[363433538,1748722246302,-430.0,0.00021095,2]
[363433539,1748722246313,-611.46,0.00021095,2]
[363433540,1748722246323,-462.23,0.00021095,2]
[363433541,1748722246332,-829.18,0.00021095,2]
[363433542,1748722246344,-533.41,0.00021095,2]
[363433543,1748722246354,-800.76,0.00021095,2]
[363433544,1748722246364,-430.0,0.00021095,2]
[363433545,1748722246374,-430.0,0.00021095,2]
[363433546,1748722246384,-430.0,0.00021095,2]
[363433547,1748722246394,-794.28,0.00021095,2]
[363433548,1748722246407,-1043.12,0.00021095,2]
[363433549,1748722246417,-612.57,0.00021095,2]
[363433550,1748722246427,-670.9,0.00021095,2]
[363433551,1748722246437,-1063.19,0.00021095,2]
[363433552,1748722246447,-1116.84,0.00021095,2]
[363433553,1748722246457,-1012.57,0.00021095,2]
[363433554,1748722246467,-843.24,0.00021095,2]
[363433555,1748722246477,-1455.93,0.00021095,2]
[363433556,1748722246487,-2184.12,0.00021095,2]
[363433557,1748722246497,-494.22,0.00021095,2]
[363433558,1748722246506,-68620.89,0.000211,2]
[363433559,1748722246516,-151.0,0.000211,2]
[363433560,1748722246526,-151.0,0.000211,2]
[363433561,1748722246537,-218.569449,0.000211,2]
[363433562,1748722246547,-152.292857,0.000211,2]
[363433563,1748722246557,-151.0,0.000211,2]
[363433564,1748722246567,-151.0,0.000211,2]
[363433565,1748722246576,-151.0,0.000211,2]
[363433566,1748722246586,-151.0,0.000211,2]
[363433567,1748722246597,-1126.125623,0.000211,2]
[363433568,1748722246607,-1126.125623,0.000211,2]
[363433569,1748722246617,-151.0,0.000211,2]
[363433570,1748722246626,-299.474068,0.000211,2]
[363433571,1748722246637,-200.302633,0.000211,2]
[363433572,1748722246646,-151.0,0.000211,2]
[363433573,1748722246658,-151.101352,0.000211,2]
[363433574,1748722246667,-151.101352,0.000211,2]
[363433575,1748722246677,-151.0,0.000211,2]
[363433576,1748722246687,-151.0,0.000211,2]
[363433577,1748722246697,-390.415972,0.000211,2]
[363433579,1748722246707,-390.415972,0.000211,2]
[363433581,1748722246717,-327.942387,0.000211,2]
[363433582,1748722246727,-327.942387,0.000211,2]
[363433583,1748722246736,-165.745473,0.000211,2]
[363433584,1748722246745,-165.745473,0.000211,2]
[363433585,1748722246755,-284.548322,0.000211,2]
[363433586,1748722246765,-284.548322,0.000211,2]
[363433587,1748722246774,-939.330084,0.000211,2]
[363433588,1748722246784,-939.330084,0.000211,2]
[363433589,1748722246793,-501.32510502,0.00021244,2]
[363433590,1748722246803,-500.0,0.00021244,2]
[363433591,1748722246813,-612.01346851,0.00021279,5]
[363433592,1748722246823,-151.0,0.00021315,2]
[363433593,1748722246833,-151.0,0.00021315,2]
[363433594,1748722246843,-151.0,0.00021315,2]
[363433595,1748722246853,-276.601056,0.00021315,2]
[363433596,1748722246862,-276.601056,0.00021315,2]
[363433597,1748722246871,-151.0,0.00021315,2]
[363433598,1748722246881,-1000.0,0.00021315,2]
[363433599,1748722246891,-1000.0,0.00021315,2]
[363433600,1748722246900,-1000.0,0.00021315,2]
[363433601,1748722246920,-1000.0,0.00021315,2]
[363433602,1748722246929,-222.03353951,0.00021315,2]
[363433603,1748722246940,-785.73,0.00021369,2]
[363433604,1748722246950,-151.0,0.00021369,2]
[363433605,1748722246960,-884.52,0.00021369,2]
[363433606,1748722246969,-461.57,0.00021369,2]
[363433607,1748722246979,-151.0,0.00021369,2]
[363433608,1748722246989,-430.0,0.00021369,2]
[363433609,1748722246999,-611.46,0.00021369,2]
[363433610,1748722247009,-462.23,0.00021369,2]
[363433611,1748722247019,-151.0,0.00021369,2]
[363433612,1748722247029,-151.0,0.00021369,2]
[363433613,1748722247038,-829.18,0.00021369,2]
[363433614,1748722247048,-533.41,0.00021369,2]
[363433615,1748722247058,-800.76,0.00021369,2]
[363433616,1748722247068,-430.0,0.00021369,2]
[363433617,1748722247078,-151.0,0.00021369,2]
[363433618,1748722247088,-430.0,0.00021369,2]
[363433619,1748722247097,-794.28,0.00021369,2]
[363433620,1748722247107,-188.72232,0.00021369,2]
[363433621,1748722247116,-188.72232,0.00021369,2]
[363433622,1748722247126,-1043.12,0.00021369,2]
[363433623,1748722247137,-612.57,0.00021369,2]
[363433624,1748722247146,-670.9,0.00021369,2]
[363433625,1748722247159,-1063.19,0.00021369,2]
[363433626,1748722247169,-1116.84,0.00021369,2]
[363433627,1748722247179,-1012.57,0.00021369,2]
[363433628,1748722247189,-843.24,0.00021369,2]
[363433629,1748722247200,-1455.93,0.00021369,2]
[363433630,1748722247209,-2184.12,0.00021369,2]
[363433631,1748722247219,-151.0,0.00021369,2]
[363433632,1748722247229,-494.22,0.00021369,2]
[363433633,1748722247238,-151.0,0.00021369,2]
[363433634,1748722247248,-2000.0,0.00021463,2]
[363433635,1748722247258,-612.01346851,0.00021521,5]
[363433636,1748722247269,-1134.13008028,0.00021524,2]
[363433637,1748722247279,-250.0,0.000216,30]
[363433638,1748722247288,-223.0315306,0.00021605,2]
[363433639,1748722247298,-151.0,0.00021643,2]
[363433640,1748722247308,-179.358245,0.00021643,2]
[363433641,1748722247318,-519.023207,0.00021643,2]
[363433642,1748722247328,-519.023207,0.00021643,2]
[363433643,1748722247337,-151.0,0.00021643,2]
[363433644,1748722247347,-151.0,0.00021643,2]
[363433645,1748722247357,-785.73,0.00021643,2]
[363433646,1748722247367,-884.52,0.00021643,2]
[363433647,1748722247376,-461.57,0.00021643,2]
[363433648,1748722247386,-537.93276354,0.00021643,2]
[363433649,1748722247396,-611.46,0.00021643,2]
[363433650,1748722247407,-462.23,0.00021643,2]
[363433651,1748722247417,-151.0,0.00021643,2]
[363433652,1748722247427,-829.18,0.00021643,2]
[363433653,1748722247436,-533.41,0.00021643,2]
[363433654,1748722247446,-800.76,0.00021643,2]
[363433655,1748722247456,-430.0,0.00021643,2]
[363433656,1748722247465,-430.0,0.00021643,2]
[363433657,1748722247474,-794.28,0.00021643,2]
[363433658,1748722247484,-1043.12,0.00021643,2]
[363433659,1748722247494,-347.002619,0.00021643,2]
[363433660,1748722247503,-347.002619,0.00021643,2]
[363433661,1748722247512,-612.57,0.00021643,2]
[363433662,1748722247522,-670.9,0.00021643,2]
[363433663,1748722247532,-1063.19,0.00021643,2]
[363433664,1748722247542,-1116.84,0.00021643,2]
[363433665,1748722247551,-204.02062,0.00021643,2]
[363433666,1748722247560,-204.02062,0.00021643,2]
[363433667,1748722247569,-1012.57,0.00021643,2]
[363433668,1748722247579,-843.24,0.00021643,2]
[363433669,1748722247589,-1455.93,0.00021643,2]
[363433670,1748722247599,-2184.12,0.00021643,2]
[363433671,1748722247609,-494.22,0.00021643,2]
[363433672,1748722247618,-255.43,0.000217,2]
[363433673,1748722247628,-17612.31,0.000217,30]
[363433674,1748722247637,-12664.98044988,0.000217,30]
[363433675,1748722247647,-842.5625,0.000217,30]
[363433676,1748722247657,-212.77096907,0.000217,30]
[363433677,1748722247666,-612.01346851,0.00021762,5]
[363433678,1748722247675,-797.49248903,0.00021792,2]
[363433679,1748722247685,-9863.52,0.000219,2]
[363433680,1748722247695,-150.0,0.000219,5]
[363433681,1748722247705,-22247.89,0.00021914,2]
[363433682,1748722247715,-500.0,0.00021917,2]
[363433683,1748722247724,-785.73,0.00021917,2]
[363433684,1748722247734,-884.52,0.00021917,2]
[363433685,1748722247744,-461.57,0.00021917,2]
[363433686,1748722247754,-611.46,0.00021917,2]
[363433687,1748722247763,-462.23,0.00021917,2]
[363433688,1748722247773,-829.18,0.00021917,2]
[363433689,1748722247782,-533.41,0.00021917,2]
[363433690,1748722247792,-800.76,0.00021917,2]
[363433691,1748722247802,-430.0,0.00021917,2]
[363433692,1748722247812,-430.0,0.00021917,2]
[363433693,1748722247821,-794.28,0.00021917,2]
[363433694,1748722247831,-1043.12,0.00021917,2]
[363433695,1748722247841,-612.57,0.00021917,2]
[363433696,1748722247851,-670.9,0.00021917,2]
[363433697,1748722247861,-1063.19,0.00021917,2]
[363433698,1748722247871,-1116.84,0.00021917,2]
[363433699,1748722247880,-1012.57,0.00021917,2]
[363433700,1748722247890,-843.24,0.00021917,2]
[363433701,1748722247899,-1455.93,0.00021917,2]
[363433702,1748722247910,-2184.12,0.00021917,2]
[363433703,1748722247920,-494.22,0.00021917,2]
[363433704,1748722247930,-836.042454,0.00021918,2]
[363433705,1748722247939,-836.042454,0.00021918,2]
[363433706,1748722247949,-836.042454,0.00021918,2]
[363433707,1748722247959,-836.042454,0.00021918,2]
[363433708,1748722247969,-151.0,0.00021918,7]
[363433709,1748722247978,-151.0,0.00021918,7]
[363433710,1748722247988,-151.0,0.00021918,7]
[363433711,1748722247997,-151.0,0.00021918,7]
[363433712,1748722248007,-1126.125623,0.00021918,7]
[363433713,1748722248017,-1126.125623,0.00021918,7]
[363433714,1748722248027,-151.0,0.00021918,7]
[363433715,1748722248064,-836.042454,0.00021918,7]
[363433716,1748722248074,-151.101352,0.00021918,7]
[363433717,1748722248084,-836.042454,0.00021918,7]
[363433718,1748722248093,-151.101352,0.00021918,7]
[363433719,1748722248103,-151.0,0.00021918,7]
[363433720,1748722248113,-151.0,0.00021918,7]
[363433721,1748722248122,-390.415972,0.00021918,2]
[363433722,1748722248133,-390.415972,0.00021918,2]
[363433723,1748722248143,-327.942387,0.00021918,7]
[363433724,1748722248152,-327.942387,0.00021918,7]
[363433725,1748722248164,-151.0,0.00021918,7]
[363433726,1748722248174,-165.745473,0.00021918,7]
[363433727,1748722248184,-165.745473,0.00021918,7]
[363433728,1748722248195,-284.548322,0.00021918,7]
[363433729,1748722248205,-284.548322,0.00021918,7]
[363433730,1748722248215,-939.330084,0.00021918,7]
[363433731,1748722248225,-939.330084,0.00021918,7]
[363433732,1748722248235,-151.0,0.00021918,7]
[363433733,1748722248244,-151.0,0.00021918,7]
[363433734,1748722248254,-500.0,0.00021918,2]
[363433735,1748722248265,-500.0,0.00021918,2]
[363433736,1748722248276,-500.0,0.00021918,2]
[363433737,1748722248286,-500.0,0.00021918,2]
[363433738,1748722248295,-500.0,0.00021918,2]
[363433739,1748722248304,-500.0,0.00021918,2]
[363433740,1748722248315,-500.0,0.00021918,2]
[363433741,1748722248324,-500.0,0.00021918,2]
[363433742,1748722248333,-500.0,0.00021918,2]
[363433743,1748722248342,-500.0,0.00021918,2]
[363433744,1748722248353,-500.0,0.00021918,2]
[363433745,1748722248362,-500.0,0.00021918,2]
[363433746,1748722248371,-500.0,0.00021918,2]
[363433747,1748722248381,-500.0,0.00021918,2]
[363433748,1748722248391,-500.0,0.00021918,2]
[363433749,1748722248401,-463.85325381,0.00021918,2]
[363433750,1748722248412,-500.0,0.00021918,2]
[363433751,1748722248423,-500.0,0.00021918,2]
[363433752,1748722248432,-500.0,0.00021918,2]
[363433753,1748722248442,-500.0,0.00021918,2]
[363433754,1748722248452,-500.0,0.00021918,2]
[363433755,1748722248462,-500.0,0.00021918,2]
[363433756,1748722248471,-500.0,0.00021918,2]
[363433757,1748722248482,-500.0,0.00021918,2]
[363433758,1748722248491,-500.0,0.00021918,2]
[363433759,1748722248501,-500.0,0.00021918,2]
[363433760,1748722248512,-500.0,0.00021918,2]
[363433761,1748722248522,-500.0,0.00021918,2]
[363433762,1748722248532,-500.0,0.00021918,2]
[363433763,1748722248542,-500.0,0.00021918,2]
[363433764,1748722248553,-500.0,0.00021918,2]
[363433765,1748722248563,-500.0,0.00021918,2]
[363433766,1748722248573,-500.0,0.00021918,2]
[363433767,1748722248584,-500.0,0.00021918,2]
[363433768,1748722248595,-500.0,0.00021918,2]
[363433769,1748722248605,-500.0,0.00021918,2]
[363433770,1748722248614,-500.0,0.00021918,2]
[363433771,1748722248625,-500.0,0.00021918,2]
[363433772,1748722248635,-500.0,0.00021918,2]
[363433773,1748722248645,-500.0,0.00021918,2]
[363433774,1748722248655,-500.0,0.00021918,2]
[363433775,1748722248665,-500.0,0.00021918,2]
[363433776,1748722248675,-500.0,0.00021918,2]
[363433777,1748722248684,-500.0,0.00021918,2]
[363433778,1748722248694,-500.0,0.00021918,2]
[363433779,1748722248705,-500.0,0.00021918,2]
[363433780,1748722248716,-500.0,0.00021918,2]
[363433781,1748722248725,-500.0,0.00021918,2]
[363433782,1748722248735,-500.0,0.00021918,2]
[363433783,1748722248744,-500.0,0.00021918,2]
[363433784,1748722248754,-500.0,0.00021918,2]
[363433785,1748722248765,-283.23224279,0.00021918,2]
[363433786,1748722248774,-500.0,0.00021918,2]
[363433787,1748722248784,-500.0,0.00021918,2]
[363433788,1748722248794,-500.0,0.00021918,2]
[363433789,1748722248804,-500.0,0.00021918,2]
[363433790,1748722248814,-500.0,0.00021918,2]
[363433791,1748722248823,-500.0,0.00021918,2]
[363433792,1748722248833,-151.0,0.00021918,7]
[363433793,1748722248842,-500.0,0.00021918,2]
[363433794,1748722248852,-500.0,0.00021918,2]
[363433795,1748722248862,-500.0,0.00021918,2]
[363433796,1748722248872,-500.0,0.00021918,2]
[363433797,1748722248882,-500.0,0.00021918,2]
[363433798,1748722248892,-500.0,0.00021918,2]
[363433799,1748722248901,-500.0,0.00021918,2]
[363433800,1748722248913,-500.0,0.00021918,2]
[363433801,1748722248922,-500.0,0.00021918,2]
[363433802,1748722248931,-500.0,0.00021918,2]
[363433803,1748722248941,-500.0,0.00021918,2]
[363433804,1748722248951,-500.0,0.00021918,2]
[363433805,1748722248961,-500.0,0.00021918,2]
[363433806,1748722248971,-500.0,0.00021918,2]
[363433807,1748722248980,-500.0,0.00021918,2]
[363433808,1748722248990,-570.72024622,0.00021918,2]
[363433809,1748722249000,-500.0,0.00021918,2]
[363433810,1748722249009,-500.0,0.00021918,2]
[363433811,1748722249019,-500.0,0.00021918,2]
[363433812,1748722249029,-500.0,0.00021918,2]
[363433813,1748722249039,-500.0,0.00021918,2]
[363433814,1748722249049,-500.0,0.00021918,2]
[363433815,1748722249058,-500.0,0.00021918,2]
[363433816,1748722249068,-500.0,0.00021918,2]
[363433817,1748722249078,-500.0,0.00021918,2]
[363433818,1748722249088,-500.0,0.00021918,2]
[363433819,1748722249098,-500.0,0.00021918,2]
[363433820,1748722249107,-500.0,0.00021918,2]
[363433821,1748722249117,-500.0,0.00021918,2]
[363433822,1748722249126,-500.0,0.00021918,2]
[363433823,1748722249136,-188.72232,0.00021918,7]
[363433824,1748722249145,-188.72232,0.00021918,7]
[363433825,1748722249155,-500.0,0.00021918,2]
[363433826,1748722249167,-500.00000002,0.00021918,2]
[363433827,1748722249177,-347.002619,0.00021918,7]
[363433828,1748722249188,-347.002619,0.00021918,7]
[363433829,1748722249199,-204.02062,0.00021918,7]
[363433830,1748722249211,-204.02062,0.00021918,7]
[363433831,1748722249221,-151.0,0.00021918,7]
[363433832,1748722249230,-151.0,0.00021918,7]
[363433833,1748722249240,-500.0,0.0002196,2]
[363433834,1748722249250,-151.0,0.0002199,7]
[363433835,1748722249260,-102.2373615,0.0002199,7]
[363433836,1748722249364,-114.2658265,0.0002199,7]
[363433837,1748722249374,-151.0,0.0002199,7]
[363433838,1748722249384,-90.25652254,0.0002199,7]
[363433841,1748722249584,-516.23,0.00016438,2]
[363433842,1748722249594,-13.04407446,0.00016438,2]
[363434209,1748722256140,177.81169944,6.8e-07,2]
[363434224,1748722256271,177.81169944,6.8e-07,2]
[363434251,1748722456973,665.394332,0.00013699,2]
[363434253,1748722557005,173.18797083,6.8e-07,2]
[363434254,1748722557191,173.18797083,6.8e-07,2]
[363434264,1748722858309,41.54070449,6.8e-07,2]
[363434265,1748722858333,139.45847555,6.8e-07,2]
[363434266,1748722858439,180.99918004,6.8e-07,2]
[363434267,1748722858579,180.99918004,6.8e-07,2]
[363434270,1748722941665,37099.7464,0.00024649,120]
[363434271,1748722962309,334649.2975,0.00024649,120]
[363434282,1748723208125,-153.23809883,0.0001576,2]
[363434283,1748723225301,-433.45985024,0.00015919,2]
[363434288,1748723237085,-177.01034026,0.00015919,2]
[363434297,1748723319733,1712.110189,0.0002,120]
[363434347,1748723431859,-3885.9548095,0.00015919,2]
[363434349,1748723431870,-2552.93559565,0.00016338,2]
[363434351,1748723431880,-151.0,0.000164,2]
[363434353,1748723431890,-160.0,0.0001643,2]
[363434355,1748723431901,-300.0,0.00016431,2]
[363434357,1748723431911,-300.0,0.00016431,2]
[363434359,1748723431921,-1200.0,0.00016431,2]
[363434361,1748723431932,-300.0,0.00016432,2]
[363434363,1748723431943,-48228.02492982,0.00016433,2]
[363434365,1748723431953,-500.0,0.00016433,2]
[363434367,1748723431963,-217.62625734,0.00016433,2]
[363434369,1748723431981,-500.0,0.00016433,2]
[363434373,1748723431997,-500.0,0.00016433,2]
[363434376,1748723432007,-500.0,0.00016433,2]
[363434378,1748723432016,-500.0,0.00016433,2]
[363434380,1748723432026,-400.15226443,0.00016433,2]
[363434382,1748723432036,-500.0,0.00016433,2]
[363434384,1748723432046,-500.0,0.00016433,2]
[363434386,1748723432055,-522.22942023,0.00016433,2]
[363434388,1748723432065,-350.25973692,0.00016437,2]
[363434390,1748723432075,-500.0,0.00016437,2]
[363434392,1748723432085,-500.0,0.00016437,2]
[363434394,1748723432095,-500.0,0.00016437,2]
[363434396,1748723432104,-500.0,0.00016437,2]
[363434398,1748723432113,-500.0,0.00016437,2]
[363434400,1748723432123,-500.0,0.00016437,2]
[363434402,1748723432132,-500.0,0.00016437,2]
[363434404,1748723432142,-500.0,0.00016437,2]
[363434406,1748723432151,-500.0,0.00016437,2]
[363434408,1748723432162,-500.0,0.00016437,2]
[363434410,1748723432171,-500.0,0.00016437,2]
[363434412,1748723432182,-500.0,0.00016437,2]
[363434414,1748723432191,-500.0,0.00016437,2]
[363434416,1748723432201,-556.20341668,0.00016437,2]
[363434418,1748723432211,-500.0,0.00016437,2]
[363434420,1748723432221,-250.0,0.00016437,2]
[363434422,1748723432231,-430.0,0.00016438,2]
[363434424,1748723432240,-430.0,0.00016438,2]
[363434426,1748723432249,-430.0,0.00016438,2]
[363434428,1748723432258,-430.0,0.00016438,2]
[363434430,1748723432268,-481.03416104,0.00016438,2]
[363434432,1748723432278,-430.0,0.00016438,2]
[363434434,1748723432287,-430.0,0.00016438,2]
[363434436,1748723432297,-430.0,0.00016438,2]
[363434438,1748723432306,-450.0,0.00016438,2]
[363434440,1748723432315,-450.0,0.00016438,2]
[363434442,1748723432326,-400.0,0.00016438,2]
[363434444,1748723432334,-430.0,0.00016438,2]
[363434446,1748723432344,-430.0,0.00016438,2]
[363434448,1748723432354,-430.0,0.00016438,2]
[363434450,1748723432364,-514.96000003,0.00016438,2]
[363434452,1748723432373,-430.0,0.00016438,2]
[363434454,1748723432384,-414.96500573,0.00016438,2]
[363434456,1748723432394,-1140.85627546,0.00016438,2]
[363434458,1748723432403,-311.57254614,0.00016438,2]
[363434460,1748723432413,-450.0,0.00016438,2]
[363434462,1748723432423,-430.0,0.00016438,2]
[363434464,1748723432432,-450.0,0.00016438,2]
[363434466,1748723432441,-430.0,0.00016438,2]
[363434468,1748723432451,-430.0,0.00016438,2]
[363434470,1748723432460,-430.0,0.00016438,2]
[363434472,1748723432469,-430.0,0.00016438,2]
[363434475,1748723432482,-430.0,0.00016438,2]
[363434477,1748723432492,-430.0,0.00016438,2]
[363434479,1748723432501,-430.0,0.00016438,2]
[363434481,1748723432510,-430.0,0.00016438,2]
[363434482,1748723432520,-430.0,0.00016438,2]
[363434484,1748723432529,-430.0,0.00016438,2]
[363434486,1748723432539,-430.0,0.00016438,2]
[363434488,1748723432549,-450.0,0.00016438,2]
[363434490,1748723432559,-430.0,0.00016438,2]
[363434492,1748723432568,-430.0,0.00016438,2]
[363434495,1748723432578,-430.0,0.00016438,2]
[363434497,1748723432587,-430.0,0.00016438,2]
[363434498,1748723432596,-430.0,0.00016438,2]
[363434500,1748723432605,-430.0,0.00016438,2]
[363434502,1748723432615,-430.0,0.00016438,2]
[363434505,1748723432624,-305.53511976,0.00016438,2]
[363434507,1748723432634,-256.52594672,0.00016438,2]
[363434508,1748723432643,-430.0,0.00016438,2]
[363434511,1748723432653,-430.0,0.00016438,2]
[363434513,1748723432663,-430.0,0.00016438,2]
[363434515,1748723432674,-430.0,0.00016438,2]
[363434517,1748723432687,-430.0,0.00016438,2]
[363434519,1748723432697,-430.0,0.00016438,2]
[363434521,1748723432706,-430.0,0.00016438,2]
[363434522,1748723432716,-430.0,0.00016438,2]
[363434523,1748723432725,-430.0,0.00016438,2]
[363434524,1748723432737,-430.0,0.00016438,2]
[363434525,1748723432746,-430.0,0.00016438,2]
[363434526,1748723432756,-430.0,0.00016438,2]
[363434527,1748723432766,-430.0,0.00016438,2]
[363434528,1748723432776,-430.0,0.00016438,2]
[363434529,1748723432785,-430.0,0.00016438,2]
[363434530,1748723432795,-430.0,0.00016438,2]
[363434531,1748723432805,-430.0,0.00016438,2]
[363434532,1748723432814,-430.0,0.00016438,2]
[363434533,1748723432825,-430.0,0.00016438,2]
[363434534,1748723432835,-323.05217977,0.00016438,2]
[363434536,1748723432849,-450.0,0.00016438,2]
[363434537,1748723432863,-304.21445751,0.00016438,2]
[363434538,1748723432872,-430.0,0.00016438,2]
[363434540,1748723432882,-328.87543579,0.00016438,2]
[363434542,1748723432892,-430.0,0.00016438,2]
[363434544,1748723432902,-430.0,0.00016438,2]
[363434546,1748723432912,-430.0,0.00016438,2]
[363434548,1748723432922,-550.0,0.00016438,2]
[363434550,1748723432931,-430.0,0.00016438,2]
[363434552,1748723432941,-430.0,0.00016438,2]
[363434554,1748723432951,-341.65385455,0.00016438,2]
[363434556,1748723432960,-430.0,0.00016438,2]
[363434558,1748723432970,-432.19620842,0.00016438,2]
[363434560,1748723432979,-430.0,0.00016438,2]
[363434562,1748723432990,-430.0,0.00016438,2]
[363434564,1748723433001,-430.0,0.00016438,2]
[363434566,1748723433011,-430.0,0.00016438,2]
[363434568,1748723433021,-430.0,0.00016438,2]
[363434570,1748723433031,-300.0,0.00016438,2]
[363434572,1748723433041,-430.0,0.00016438,2]
[363434574,1748723433050,-301.59274398,0.00016438,2]
[363434576,1748723433059,-430.0,0.00016438,2]
[363434578,1748723433069,-430.0,0.00016438,2]
[363434580,1748723433079,-430.0,0.00016438,2]
[363434583,1748723433089,-430.0,0.00016438,2]
[363434584,1748723433098,-430.0,0.00016438,2]
[363434587,1748723433108,-407.68675523,0.00016438,2]
[363434589,1748723433118,-547.602809,0.00016438,2]
[363434590,1748723433128,-520.70669063,0.00016438,2]
[363434593,1748723433138,-430.0,0.00016438,2]
[363434594,1748723433148,-430.0,0.00016438,2]
[363434597,1748723433158,-430.0,0.00016438,2]
[363434598,1748723433167,-490.0,0.00016438,2]
[363434600,1748723433177,-430.0,0.00016438,2]
[363434602,1748723433187,-268.05998819,0.00016438,2]
[363434604,1748723433197,-430.0,0.00016438,2]
[363434607,1748723433207,-430.0,0.00016438,2]
[363434608,1748723433216,-490.0,0.00016438,2]
[363434610,1748723433226,-297.55222512,0.00016438,2]
[363434613,1748723433236,-430.0,0.00016438,2]
[363434615,1748723433247,-430.0,0.00016438,2]
[363434616,1748723433256,-430.0,0.00016438,2]
[363434619,1748723433266,-430.0,0.00016438,2]
[363434620,1748723433276,-430.0,0.00016438,2]
[363434623,1748723433286,-531.08677894,0.00016438,2]
[363434624,1748723433295,-430.0,0.00016438,2]
[363434626,1748723433305,-430.0,0.00016438,2]
[363434629,1748723433315,-430.0,0.00016438,2]
[363434630,1748723433324,-178.4201111,0.00016438,2]
[363434633,1748723433333,-358.53186603,0.00016438,2]
[363434635,1748723433344,-430.0,0.00016438,2]
[363434637,1748723433353,-290.0,0.00016438,2]
[363434639,1748723433364,-162.04968254,0.00016438,2]
[363434657,1748723433375,-430.0,0.00016438,2]
[363434659,1748723433539,-430.0,0.00016438,2]
[363434661,1748723433549,-312.79197356,0.00016438,2]
[363434663,1748723433559,-470.0,0.00016438,2]
[363434665,1748723433569,-430.0,0.00016438,2]
[363434667,1748723433578,-430.0,0.00016438,2]
[363434669,1748723433588,-430.0,0.00016438,2]
[363434671,1748723433597,-392.09741395,0.00016438,2]
[363434673,1748723433607,-430.0,0.00016438,2]
[363434675,1748723433616,-430.0,0.00016438,2]
[363434677,1748723433626,-430.0,0.00016438,2]
[363434679,1748723433636,-430.0,0.00016438,2]
[363434681,1748723433645,-440.0,0.00016438,2]